Cogmind - Beta 12 *** ADVENTURER MODE // 2024.01.15 @ 22:02:50 Player: KoyamiKomachi Result: Self-destructed Performance ------------- Evolutions (6) 3000 Regions Visited (15) 3000 Robots Destroyed (290) 1450 Value Destroyed (10721) 10721 Prototype IDs (36) 720 Alien Tech Used (0) 0 Bonus (844) 844 TOTAL SCORE: 19735 Bonus ------- High Alert Combat Kills 252 Follower Combat Kills 993 Friendly Fire -401 Cogmind --------- Core Integrity 1150/1150 Matter 296/300 Energy 242/242 System Corruption 0% Temperature Cool (0) Movement Hovering (206) Ox1 Location -4/Factory Parts ------- > --- POWER (2) -------- Multi-Neutrino Core > --- PROPULSION (4) --- Hovering Antigrav-Gravmag Exoskeleton > --- UTILITY (9) ------ Armored Scrap Engine Large Storage Unit Improved Sensor Array Advanced Signal Interpreter Advanced Transmission Jammer (fused) > --- WEAPON (4) ------- Rocket Array Directed Plasma Construct/C Directed Plasma Construct/C Heavy Hammer (fused) > --- INVENTORY (15) --- Advanced Heat Sink Large Matter Pod (150) Advanced Signal Interpreter Advanced Terrain Scanner Long-range Terrain Scanner Advanced Terrain Scan Processor Advanced ECM Suite Improved Component Analysis Suite Long-range Tractor Beam Improved Arc Projector Advanced Beam Cannon Gauss Cannon Heavy Shock Bomb Launcher Hammer Phasing Sabre Peak State ------------ > --- POWER ------------ Backup Power III Multi-Neutrino Core > --- PROPULSION ------- Hovering Antigrav-Gravmag Exoskeleton > --- UTILITY ---------- Armored Scrap Engine Advanced Heat Sink Large Storage Unit Improved Sensor Array Advanced Signal Interpreter Advanced Transmission Jammer Advanced Recalibrator > --- WEAPON ----------- Cooled Plasma Rifle Directed Plasma Construct/C > --- INVENTORY -------- Advanced Heat Sink Large Matter Pod Advanced Signal Interpreter Advanced Terrain Scanner Advanced Terrain Scan Processor Advanced ECM Suite Improved Component Analysis Suite Long-range Tractor Beam Advanced Beam Cannon Gauss Cannon Heavy Shock Bomb Launcher Rocket Array Hammer Heavy Hammer Phasing Sabre [Rating: 98] Favorites ----------- Power Constructs Engine Heavy Ion Engine Power Core Constructs Propulsion Constructs Treads Light Treads Wheel Armored Wheel Hover Unit Constructs Flight Unit Improved VTOL Module Utility Armored Scrap Engine Device Armored Scrap Engine Storage Large Storage Unit Processor Improved Signal Interpreter Protection Hardened Light Armor Plating Weapon Constructs Energy Gun Improved Medium Laser Energy Cannon Constructs Ballistic Gun Gauss Rifle Ballistic Cannon Constructs Launcher Missile Launcher Special Weapon Plasma Flamer Impact Weapon Hammer Slashing Weapon Great Axe Build | -11 -10 -10 -9 -9 -9 -7 -6 -6 -6 -6 -6 -5 -5 -5 -4 ------- Run | Jun Mat Min Mat Sto Rec Fac Fac Ext Cet Arc Hub Fac Was Fac Fac Slots Evolved 12 | . . . 2 . . 4 2 . . . . 2 . . 2 Power 1 | . . . . . . . . . . . . 1 . . . Propulsion 2 | . . . . . . 1 1 . . . . . . . . Utility 7 | . . . 2 . . 2 1 . . . . 1 . . 1 Weapon 2 | . . . . . . 1 . . . . . . . . 1 Parts Attached 170 | 6 8 14 8 13 5 50 6 11 6 5 13 8 1 16 . Power 14 | 1 2 2 2 1 . 3 . . . . . 1 . 2 . Engine 11 | 1 2 2 2 1 . 1 . . . . . 1 . 1 . Core 3 | . . . . . . 2 . . . . . . . 1 . Reactor . | . . . . . . . . . . . . . . . . Propulsion 14 | 2 2 4 2 1 1 2 . . . . . . . . . Treads 5 | 1 1 1 . 1 1 . . . . . . . . . . Leg . | . . . . . . . . . . . . . . . . Wheel 8 | 1 1 3 2 . . 1 . . . . . . . . . Hover . | . . . . . . . . . . . . . . . . Flight 1 | . . . . . . 1 . . . . . . . . . Utility 67 | 1 3 1 2 3 4 18 3 8 3 2 7 6 1 5 . Device 45 | . 1 1 1 2 4 13 2 6 . 2 4 4 1 4 . Storage 9 | 1 2 . . . . 2 . 1 . . 1 1 . 1 . Processor 9 | . . . . . . 2 1 1 2 . 2 1 . . . Hackware . | . . . . . . . . . . . . . . . . Protection 4 | . . . 1 1 . 1 . . 1 . . . . . . Artifact . | . . . . . . . . . . . . . . . . Weapon 75 | 2 1 7 2 8 . 27 3 3 3 3 6 1 . 9 . Energy Gun 20 | . 1 4 1 3 . 2 1 . 1 2 1 . . 4 . Energy Cannon . | . . . . . . . . . . . . . . . . Ballistic Gun 11 | 2 . . . . . 8 . . 1 . . . . . . Ballistic Cannon 17 | . . 1 1 2 . 7 2 2 1 1 . . . . . Launcher 7 | . . 1 . . . 2 . . . . 1 . . 3 . Special Weapon 1 | . . 1 . . . . . . . . . . . . . Impact Weapon 6 | . . . . . . 4 . . . . . 1 . 1 . Slashing Weapon 13 | . . . . 3 . 4 . 1 . . 4 . . 1 . Piercing Weapon . | . . . . . . . . . . . . . . . . Special Melee Weapon . | . . . . . . . . . . . . . . . . Unidentified Prototypes 14 | . . . 1 1 . 3 . . 3 . 3 . . 3 . Parts Lost 42 | . . 7 1 3 1 12 2 2 1 3 4 2 . 4 . Power 6 | . . 2 1 . . 2 . . . . . . . 1 . Propulsion 9 | . . 1 . 1 . 1 . . 1 1 3 . . 1 . Utility 10 | . . . . 1 1 2 1 1 . 1 . 1 . 2 . Weapon 17 | . . 4 . 1 . 7 1 1 . 1 1 1 . . . Highest Loss Streak 4 | . . 4 1 1 1 2 1 1 1 2 2 1 . 2 . To Critical Strikes 1 | . . . . . . . . . . 1 . . . . . Average Slot Usage (%) 75 | . 97 99 98 99 87 71 64 65 60 65 65 61 68 62 52 Engine 5 | . 14 13 10 11 11 4 6 6 2 . . 1 3 . . Core 2 | . . . . . . 2 . . 3 6 5 3 5 4 5 Treads 3 | . 14 14 11 11 11 . . . . . . . . . . Leg 1 | . . . . . . . . 6 6 6 5 . . . . Wheel 3 | . 14 13 11 11 11 1 . . . . . . . . . Hover 2 | . . . . . . 3 . . . . . 4 5 5 5 Flight 1 | . . . . . . 2 4 . . . . . . . . Device 19 | . 9 14 21 21 21 21 19 19 14 12 17 20 29 25 15 Storage 8 | . 16 14 11 11 11 7 6 6 6 6 6 5 5 5 5 Processor 6 | . . . . . . 6 8 13 18 20 15 11 5 5 5 Energy Gun 5 | . 13 11 11 14 22 3 4 2 . 4 1 . . . . Ballistic Gun 4 | . 14 . . . . 7 . . . . . . . 2 . Ballistic Cannon 4 | . . 13 11 5 . 3 2 6 6 7 5 3 . 1 5 Slashing Weapon 1 | . . . . 1 . 1 . . . . 3 4 . . . Naked Turns . | . . . . . . . . . . . . . . . . Heaviest Build 67 | 11 50 52 65 65 61 67 44 50 53 53 54 54 47 57 51 Greatest Support 126 | 20 10 40 16 20 12 58 77 126 126 94 93 62 46 46 30 Greatest Overweight (x) 17 | 1 4 5 6 5 5 17 1 . . . 1 1 1 1 1 Average Overweight (x) 1 | . 2 4 4 4 4 1 . . . . . . . . 1 Largest Inventory Capacity 20 | 8 20 20 20 20 20 20 15 15 15 15 15 15 15 15 15 Average Capacity 16 | 6 16 20 20 20 20 16 15 15 15 15 15 15 15 15 15 Most Carried 20 | 4 20 20 20 20 20 20 14 15 15 15 15 15 15 15 15 Average Carried 15 | 2 12 16 19 19 16 14 12 14 14 14 14 14 14 14 15 Final Capacity 20 | 8 20 20 20 20 20 15 15 15 15 15 15 15 15 15 15 Final Carried 20 | 4 17 20 20 19 17 14 14 15 15 15 15 14 15 15 15 Scrap Engine Consumption 280 | . . . . . 16 124 15 32 10 7 24 27 13 12 . Constructs Created 21 | . . . . . . 12 . 2 2 . 1 . . 3 1 Constructs Modified 91 | . . . . . . 37 8 10 2 2 13 10 . 9 . Class Distribution -------------------- 53% | Construct 27% | Mutant 8% | Scavenger-Mutant 7% | Commander-Mutant Dominant Class ---------------- Mutant | -10/Materials Mutant | -10/Mines Scavenger-Mutant | -9/Materials Mutant | -9/Storage Commander-Mutant | -9/Recycling Construct | -7/Factory Mutant | -6/Factory Construct | -6/Extension Construct | -6/Cetus Scavenger-Mutant | -6/Archives Construct | -6/Hub_04(d) Mutant | -5/Factory Construct | -5/Waste Mutant | -5/Factory Mutant | -4/Factory Resources | -11 -10 -10 -9 -9 -9 -7 -6 -6 -6 -6 -6 -5 -5 -5 -4 ----------- Run | Jun Mat Min Mat Sto Rec Fac Fac Ext Cet Arc Hub Fac Was Fac Fac Matter Collected 6556 | 230 429 392 302 121 123 2300 275 866 248 123 294 237 40 576 . Remotely 836 | . . . . . . 691 145 . . . . . . . . Salvage Created 12841 | . 438 162 680 416 734 3325 557 1286 816 336 1868 1498 . 725 . Parts 663 | . 30 14 50 21 30 174 18 52 42 17 97 90 . 28 . Haulers Intercepted 26 | . 2 . 4 3 1 5 . 1 . . 7 2 . 1 . Recyclers Shooed 11 | . . . . . 1 3 . 4 . . . 2 . 1 . Parts Field Recycled . | . . . . . . . . . . . . . . . . Retrieved Matter . | . . . . . . . . . . . . . . . . Parts Self-Destructed . | . . . . . . . . . . . . . . . . Prevented . | . . . . . . . . . . . . . . . . Kills | -11 -10 -10 -9 -9 -9 -7 -6 -6 -6 -6 -6 -5 -5 -5 -4 ------- Run | Jun Mat Min Mat Sto Rec Fac Fac Ext Cet Arc Hub Fac Was Fac Fac Combat Hostiles Destroyed 220 | . 11 18 12 8 5 72 12 12 14 4 18 19 . 15 . Melee 2 | . . . . . . 1 . . . . . 1 . . . Guns 80 | . 11 4 7 6 5 37 4 . . 2 4 . . . . Cannons 114 | . . 14 5 2 . 23 7 12 14 2 14 17 . 4 . AOE 21 | . . . . . . 11 . . . . . . . 10 . Classes Destroyed 19 | . 5 4 2 . 2 3 . 1 . . 1 . . 1 . Worker 10 | . 1 1 2 . . 1 . . . . 2 3 . . . Builder 9 | . . 1 . . . 4 . 2 . . 1 . . 1 . Tunneler 3 | . . 1 . . . . . 1 . . . . . 1 . Hauler 26 | . 2 . 4 3 1 5 . 1 . . 7 2 . 1 . Recycler 16 | . . . 1 . 3 4 . 5 . . . 2 . 1 . Mechanic 1 | . . . . . . . . . . . . . . 1 . Operator 2 | . . . . . . . . . . . 1 1 . . . Watcher 21 | . 3 . 3 . . 5 . 2 1 . 3 3 . 1 . Swarmer 62 | . 9 3 4 . . 13 5 3 3 . 6 8 . 8 . Grunt 52 | . 2 . 3 7 . 27 3 . 5 . 4 1 . . . Brawler 5 | . . . . . . 2 1 . 1 . 1 . . . . Duelist 4 | . . . . . . 2 1 . 1 . . . . . . Protector 1 | . . . . . 1 . . . . . . . . . . Sentry 35 | . . . 5 1 3 8 . 5 . 4 5 2 . 2 . Demolisher 1 | . . 1 . . . . . . . . . . . . . Hunter 11 | . . . . . . 3 1 . . . . 6 . 1 . Programmer 27 | . . . . . 1 17 1 1 . . 1 2 . 4 . Behemoth 3 | . . . . . . . . 2 . . 1 . . . . Cetus Guard 4 | . . . . . . . . . 4 . . . . . . Assembled 14 | . . 14 . . . . . . . . . . . . . Thug 3 | . . . . . . . . 1 . . . . . 2 . Best Kill Streak 12 | . 6 4 5 4 2 12 3 6 5 2 5 6 . 8 . Combat Bots Only 11 | . 4 4 5 3 1 11 3 6 5 2 3 5 . 6 . Max Kills in Single Turn 3 | . 2 2 2 1 1 3 1 2 2 1 2 1 . 3 . Gunslinging 1 | . 1 . . . . . . . . . . . . . . Exploded 2 | . . . . . . 2 . . . . . . . 2 . Melee 1 | . . . . . . 1 . . . . . 1 . . . Uniques/NPCs Destroyed . | . . . . . . . . . . . . . . . . Combat | -11 -10 -10 -9 -9 -9 -7 -6 -6 -6 -6 -6 -5 -5 -5 -4 -------- Run | Jun Mat Min Mat Sto Rec Fac Fac Ext Cet Arc Hub Fac Was Fac Fac Damage Taken 12956 | . 185 855 298 290 56 3954 802 1249 986 588 1121 1015 108 1449 . Core 1797 | . 39 142 27 44 . 454 139 164 102 77 174 125 36 274 . Absorbed by Shields 9 | . . . . . . . . 9 . . . . . . . Regen/Repaired (Parts) 4104 | . 48 . . 110 . 1225 429 775 134 282 323 390 285 103 . Core Remaining (%) 53 | 100 . 27 . . 82 35 . . . . 22 . . 56 . Volleys Fired 887 | . 36 56 53 30 33 267 41 84 42 31 82 83 7 42 . Largest 3 | . 2 2 2 2 2 3 2 3 1 2 2 1 1 2 . Hottest 219 | . 70 135 114 114 112 166 119 158 108 128 135 100 100 219 . Shots Fired 1490 | . 72 89 102 58 66 549 69 175 42 36 99 83 7 43 . Gun 752 | . 72 21 49 37 66 381 31 44 . 5 33 . . 13 . Cannon 701 | . . 47 53 21 . 161 38 131 42 31 66 83 7 21 . Launcher 21 | . . 5 . . . 7 . . . . . . . 9 . Special 16 | . . 16 . . . . . . . . . . . . . Kinetic 870 | . 36 47 53 21 . 396 23 130 42 31 27 64 . . . Thermal 561 | . 36 37 49 37 66 146 20 44 . 5 72 19 7 23 . Explosive 21 | . . 5 . . . 7 . . . . . . . 9 . Electromagnetic 38 | . . . . . . . 26 1 . . . . . 11 . Robot Hit Streak 41 | . 20 29 18 23 41 34 31 24 9 13 19 22 11 30 . Robot Miss Streak 8 | . 3 3 3 1 1 3 3 4 2 2 5 7 . 8 . Penetration Max 1 | . . . . . . 1 . 1 1 1 1 1 . . . Secondary Targets 2 | . 2 . . . . . . . . . . . . . . Max Gunslinging Chain 1 | . 1 . . . . . . . . . . . . . . Shots Hit Robots 1077 | . 51 61 74 46 55 372 57 114 31 27 73 83 7 26 . Core Hits 583 | . 20 44 24 13 18 172 33 56 21 10 59 58 . 55 . Critical Kills 18 | . . . . . . 1 . . 4 1 10 2 . . . Critical Parts Destroyed 28 | . 1 . . . . 4 . . 1 6 13 3 . . . Critical Strikes 102 | . 5 5 5 6 1 23 2 7 7 8 23 5 3 2 . Burn 21 | . 4 4 2 5 1 3 . . . . . . . 2 . Destroy 51 | . 1 . . . . 5 . . 7 8 23 4 3 . . Blast 29 | . . 1 3 1 . 15 2 7 . . . . . . . Smash 1 | . . . . . . . . . . . . 1 . . . Melee Attacks 66 | . . . . 4 . 23 . . . . 5 28 5 1 . Impact 20 | . . . . . . 10 . . . . . 4 5 1 . Slashing 46 | . . . . 4 . 13 . . . . 5 24 . . . Piercing . | . . . . . . . . . . . . . . . . Sneak Attacks 4 | . . . . . . 1 . . . . . 3 . . . Combat Hostiles . | . . . . . . . . . . . . . . . . Follow-up Attacks . | . . . . . . . . . . . . . . . . Damage Inflicted 31219 | . 668 927 1430 885 948 9744 1293 3302 1981 1093 3339 3185 233 2191 . Guns 10052 | . 668 174 811 547 948 4859 526 546 . 134 616 . . 223 . Cannons 16783 | . . 524 619 338 . 2808 767 2756 1981 959 2723 2602 233 473 . Explosions 3464 | . . 72 . . . 1747 . . . . . 150 . 1495 . Melee 763 | . . . . . . 330 . . . . . 433 . . . Ramming . | . . . . . . . . . . . . . . . . Kinetic 16667 | . 303 524 619 338 . 5819 482 2724 1981 959 806 2112 . . . Thermal 10219 | . 365 331 811 547 948 2105 370 532 . 134 2533 490 233 820 . Explosive 2872 | . . 72 . . . 1490 . . . . . 150 . 1160 . Electromagnetic 698 | . . . . . . . 441 46 . . . . . 211 . Impact 102 | . . . . . . . . . . . . 102 . . . Slashing 661 | . . . . . . 330 . . . . . 331 . . . Piercing . | . . . . . . . . . . . . . . . . Highest Corruption 27 | . . . . . . 11 . 2 2 2 5 1 20 27 . Average Corruption 5 | . . . . . . 4 . 1 2 2 3 1 12 21 . Corruption Purged . | . . . . . . . . . . . . . . . . Corruption Blocked . | . . . . . . . . . . . . . . . . Effects 252 | . . . . . . 139 . 6 5 4 21 2 12 63 . Message Errors 55 | . . . . . . 29 . 1 1 1 2 1 2 18 . Matter Fused 54 | . . . . . . 23 . 1 . 1 6 . 6 17 . Heat Flow Errors 33 | . . . . . . 21 . 1 1 1 2 . . 7 . Energy Discharges 30 | . . . . . . 21 . . 1 . 3 . 1 4 . Parts Rejected 4 | . . . . . . 4 . . . . . . . . . Parts Fused 2 | . . . . . . . . . . . . . 1 1 . Data Loss (minor) 36 | . . . . . . 24 . 2 . . 5 . . 5 . Data Loss (major) 16 | . . . . . . 7 . 1 . . 3 1 . 4 . Misfires 9 | . . . . . . 6 . . . 1 . . . 2 . Alerts 7 | . . . . . . 2 . . 2 . . . 2 1 . Misdirections 1 | . . . . . . . . . . . . . . 1 . Weapon Failures 5 | . . . . . . 2 . . . . . . . 3 . Overload Shots . | . . . . . . . . . . . . . . . . Overflow Damage 648 | . . 16 13 . . 261 . 28 55 22 26 159 . 68 . Projectiles 316 | . . 16 13 . . 69 . 28 55 22 26 87 . . . Explosions 176 | . . . . . . 108 . . . . . . . 68 . Melee 156 | . . . . . . 84 . . . . . 72 . . . Knockbacks 100 | . . 8 5 . . 26 3 15 6 2 2 33 . . . Impact . | . . . . . . . . . . . . . . . . Kinetic 94 | . . 8 4 . . 25 3 13 6 2 2 31 . . . Secondary 6 | . . . 1 . . 1 . 2 . . . 2 . . . Self-Inflicted Damage 524 | . . 47 . . . 117 . . . . . 64 . 296 . Shots 20 | . . 5 . . . 3 . . . . . 1 . 11 . Rammed . | . . . . . . . . . . . . . . . . Targets Rammed . | . . . . . . . . . . . . . . . . Kicked . | . . . . . . . . . . . . . . . . Crushed . | . . . . . . . . . . . . . . . . Highest Temperature 352 | . 114 330 180 196 45 257 240 241 291 256 175 352 8 251 . Average Temperature 60 | . 26 113 48 70 13 50 114 53 63 63 24 84 4 91 . Received Heat Transfer 2412 | . 48 120 114 195 36 951 144 222 234 108 114 90 . 36 . Effects 3 | . . . . . . 3 . . . . . . . . . Energy Bleed 1 | . . . . . . 1 . . . . . . . . . Interference 2 | . . . . . . 2 . . . . . . . . . Siege Activations . | . . . . . . . . . . . . . . . . Robots Corrupted 2 | . . . . . . . 1 . . . . . . 1 . Combat Hostiles 1 | . . . . . . . 1 . . . . . . . . Parts Fried 9 | . . . . . . . 3 . . . . 4 . 2 . Impact Corruptions 2 | . . . . . . . . . . . . 2 . . . Robots Melted 1 | . . . . . . . . . . . . . . 1 . Combat Hostiles 1 | . . . . . . . . . . . . . . 1 . Parts Melted 27 | . 3 . 1 4 2 8 4 1 . . . . . 4 . Heat Transferred 18985 | . 1369 2032 1702 1480 2154 5060 1335 1295 . 185 296 518 259 1300 . Parts Sabotaged 1 | . . . . . . . . . . . 1 . . . . Parts Stolen . | . . . . . . . . . . . . . . . . Parts Stripped . | . . . . . . . . . . . . . . . . Power Chain Reactions . | . . . . . . . . . . . . . . . . Missiles Intercepted . | . . . . . . . . . . . . . . . . Alert | -11 -10 -10 -9 -9 -9 -7 -6 -6 -6 -6 -6 -5 -5 -5 -4 ------- Run | Jun Mat Min Mat Sto Rec Fac Fac Ext Cet Arc Hub Fac Was Fac Fac Peak Influence 894 | . 265 79 291 225 106 415 224 375 397 218 414 894 301 473 199 Initial 261 | . . . 1 69 35 14 . 94 135 93 63 75 261 113 199 Average 129 | . 74 14 118 134 37 82 80 221 248 195 197 482 229 167 199 Maximum Alert Level 3 | . 1 . 1 1 . 2 1 1 1 1 2 3 1 2 . Low Security (%) 76 | 100 89 100 85 86 100 89 98 43 27 34 50 4 45 74 100 Level 1 18 | . 10 . 14 13 . 9 1 56 72 65 48 37 54 21 . Level 2 3 | . . . . . . 1 . . . . . 42 . 3 . Level 3 . | . . . . . . . . . . . . 16 . . . Level 4 . | . . . . . . . . . . . . . . . . Level 5 . | . . . . . . . . . . . . . . . . High Security . | . . . . . . . . . . . . . . . . Max Security . | . . . . . . . . . . . . . . . . Squads Dispatched 56 | . . . 1 1 . 35 3 1 . . 8 2 . 5 . Investigation 10 | . . . . . . 4 2 1 . . 2 1 . . . Extermination 19 | . . . . . . 15 1 . . . 1 . . 2 . Reinforcement 15 | . . . 1 1 . 7 . . . . 4 . . 2 . Assault 3 | . . . . . . 1 . . . . 1 1 . . . Garrison 9 | . . . . . . 8 . . . . . . . 1 . Intercept . | . . . . . . . . . . . . . . . . Searches Triggered . | . . . . . . . . . . . . . . . . Construction Impeded 4 | . . . . . . 2 . . . . 1 . . 1 . Haulers Reinforced 6 | . . . . . . 3 . . . . 2 . . 1 . Active Scanning Responses . | . . . . . . . . . . . . . . . . Cargo Convoy Interrupts . | . . . . . . . . . . . . . . . . Stealth | -11 -10 -10 -9 -9 -9 -7 -6 -6 -6 -6 -6 -5 -5 -5 -4 --------- Run | Jun Mat Min Mat Sto Rec Fac Fac Ext Cet Arc Hub Fac Was Fac Fac Distress Signals 14 | . . 1 3 . . 4 . . 2 . 2 . . 2 . Communications Jammed 37 | . . . . . . . . . . . . 37 . . . Distress Signals 36 | . . . . . . . . . . . . 36 . . . Times Spotted 349 | . 18 21 24 8 5 93 19 24 19 15 33 42 5 23 . Peak Tracking Total 8 | . 5 3 4 3 2 8 5 4 8 2 6 7 2 4 . Tactical Retreats 22 | . 2 2 . . . 7 3 1 . . 3 4 . . . Traps | -11 -10 -10 -9 -9 -9 -7 -6 -6 -6 -6 -6 -5 -5 -5 -4 ------- Run | Jun Mat Min Mat Sto Rec Fac Fac Ext Cet Arc Hub Fac Was Fac Fac Traps Triggered 9 | . 1 . . . . 4 1 1 . . 1 1 . . . Indirectly . | . . . . . . . . . . . . . . . . Trap Hack Attempts . | . . . . . . . . . . . . . . . . Triggered . | . . . . . . . . . . . . . . . . Disarmed . | . . . . . . . . . . . . . . . . Reprogrammed . | . . . . . . . . . . . . . . . . Reused . | . . . . . . . . . . . . . . . . Traps Extracted . | . . . . . . . . . . . . . . . . Installed . | . . . . . . . . . . . . . . . . Triggered . | . . . . . . . . . . . . . . . . Machines | -11 -10 -10 -9 -9 -9 -7 -6 -6 -6 -6 -6 -5 -5 -5 -4 ---------- Run | Jun Mat Min Mat Sto Rec Fac Fac Ext Cet Arc Hub Fac Was Fac Fac Machines Disabled 48 | . . . . 3 . 16 1 1 . 1 10 7 . 9 . Max in Single Turn 5 | . . . . 1 . 5 1 1 . 1 2 4 . 4 . Garrison Access 4 | . . . . . . 1 . . . . 1 2 . . . Machines Repaired . | . . . . . . . . . . . . . . . . Machines Sabotaged . | . . . . . . . . . . . . . . . . Overloaded Fab Kills . | . . . . . . . . . . . . . . . . Hacking | -11 -10 -10 -9 -9 -9 -7 -6 -6 -6 -6 -6 -5 -5 -5 -4 --------- Run | Jun Mat Min Mat Sto Rec Fac Fac Ext Cet Arc Hub Fac Was Fac Fac Machines Accessed 90 | . 8 2 7 5 9 18 5 10 3 . 12 8 . 3 . Terminals 63 | . 5 1 5 4 6 10 3 10 3 . 12 4 . . . Fabricators 4 | . . . . . . 1 1 . . . . 1 . 1 . Repair Stations 6 | . 1 . . 1 . 2 . . . . . 1 . 1 . Recycling Units 7 | . 2 . 1 . 3 1 . . . . . . . . . Scanalyzers 5 | . . . 1 . . 2 1 . . . . . . 1 . Garrison Access 4 | . . . . . . 2 . . . . . 2 . . . Total Hacks 249 | . 19 4 25 9 26 51 13 30 5 . 40 21 . 6 . Successful 147 | . 10 3 21 6 20 29 7 14 2 . 22 11 . 2 . Failed 102 | . 9 1 4 3 6 22 6 16 3 . 18 10 . 4 . Catastrophic 12 | . 2 . . 1 1 1 . . 2 . 5 . . . . Database Lockouts . | . . . . . . . . . . . . . . . . Manual 51 | . 6 . 5 2 8 13 1 3 . . 9 4 . . . Terminals 188 | . 14 3 16 5 23 33 8 30 5 . 40 11 . . . Fabricators 7 | . . . . . . 2 2 . . . . 1 . 2 . Repair Stations 16 | . 2 . . 4 . 7 . . . . . 2 . 1 . Recycling Units 11 | . 3 . 1 . 3 4 . . . . . . . . . Scanalyzers 16 | . . . 8 . . 2 3 . . . . . . 3 . Garrison Access 10 | . . . . . . 3 . . . . . 7 . . . Terminal Hacks 90 | . 7 3 9 3 14 15 2 11 2 . 19 5 . . . Record 4 | . . . 1 . 2 . . . 1 . . . . . . Part Schematic 3 | . . . . . 2 1 . . . . . . . . . Robot Analysis 2 | . . . . . . 1 . . . . 1 . . . . Prototype ID Bank 10 | . 2 . 2 . 2 1 1 . . . 2 . . . . Open Door 10 | . . 1 . 2 . . 1 5 1 . . . . . . Branch Access Points 3 | . . . 1 . 1 . . . . . 1 . . . . Terminal Index 3 | . . . . . . 1 . 1 . . . 1 . . . Garrison Index 1 | . . . . . 1 . . . . . . . . . . Alert Level 6 | . 1 1 1 . 1 2 . . . . . . . . . Unreport Threat 9 | . . . . . . 2 . 3 . . 4 . . . . Locate Traps 16 | . 3 . 2 . 1 3 . 1 . . 4 2 . . . Dispatch Records 1 | . . . . . 1 . . . . . . . . . . Maintenance Status 1 | . . . . . . . . . . . 1 . . . . Recall Reinforcements 3 | . . . . . . 1 . . . . 2 . . . . Hauler Manifests 3 | . . . . 1 . 1 . . . . . 1 . . . Zone Layout 15 | . 1 1 2 . 3 2 . 1 . . 4 1 . . . Fabricator Hacks 6 | . . . . . . 2 2 . . . . 1 . 1 . Load Schematic 2 | . . . . . . 1 1 . . . . . . . . Build 4 | . . . . . . 1 1 . . . . 1 . 1 . Repair Station Hacks 13 | . 2 . . 3 . 6 . . . . . 2 . . . Scan Component 7 | . 1 . . 2 . 3 . . . . . 1 . . . Repair 6 | . 1 . . 1 . 3 . . . . . 1 . . . Recycling Unit Hacks 6 | . 1 . 1 . 3 1 . . . . . . . . . Retrieve Components 6 | . 1 . 1 . 3 1 . . . . . . . . . Scanalyzer 11 | . . . 8 . . . 2 . . . . . . 1 . Insert Component 6 | . . . 4 . . . 1 . . . . . . 1 . Analyze 5 | . . . 4 . . . 1 . . . . . . . . Garrison Access Hacks 1 | . . . . . . . . . . . . 1 . . . Seal Access 1 | . . . . . . . . . . . . 1 . . . Unauthorized Hacks 20 | . . . 3 . 3 5 1 3 . . 3 2 . . . Terminals 20 | . . . 3 . 3 5 1 3 . . 3 2 . . . Botnet 19 | . . . 3 . 3 4 1 3 . . 3 2 . . . Operators 1 | . . . . . . 1 . . . . . . . . . Fabricators . | . . . . . . . . . . . . . . . . Repair Stations . | . . . . . . . . . . . . . . . . Recycling Units . | . . . . . . . . . . . . . . . . Scanalyzers . | . . . . . . . . . . . . . . . . Garrison Access . | . . . . . . . . . . . . . . . . Data Cores Recovered 2 | . . . . . . . . . . . 1 1 . . . Used 1 | . . . . . . . . . . . 1 . . . . Hacking Detections 76 | . 8 1 5 3 4 18 4 10 3 . 12 5 . 3 . Full Trace Events 8 | . . . . . . 2 2 1 . . 2 1 . . . Feedback Events . | . . . . . . . . . . . . . . . . Feedback Blocked . | . . . . . . . . . . . . . . . . Robot Schematics Acquired . | . . . . . . . . . . . . . . . . Robots Built . | . . . . . . . . . . . . . . . . Authchips . | . . . . . . . . . . . . . . . . Time . | . . . . . . . . . . . . . . . . Total Robot Build Rating . | . . . . . . . . . . . . . . . . Part Schematics Acquired 7 | . . . 3 . 2 1 1 . . . . . . . . Parts Built 5 | . . . . . . 1 1 . . . . 2 . 1 . Authchips . | . . . . . . . . . . . . . . . . Time 224 | . . . . . . 51 51 . . . . 64 . 58 . Total Part Build Rating 25 | . . . . . . 1 1 . . . . 16 . 7 . Parts Repaired 6 | . 1 . . 1 . 3 . . . . . 1 . . . Time 234 | . 26 . . 32 . 126 . . . . . 50 . . . Parts Recycled . | . . . . . . . . . . . . . . . . Recycled Matter . | . . . . . . . . . . . . . . . . Retrieved Matter . | . . . . . . . . . . . . . . . . Retrieved Components 30 | . 4 . 9 . 16 1 . . . . . . . . . Parts Scanalyzed 6 | . . . 4 . . . 1 . . . . . . 1 . Part Schematics Acquired 4 | . . . 3 . . . 1 . . . . . . . . Parts Damaged . | . . . . . . . . . . . . . . . . Bothacking | -11 -10 -10 -9 -9 -9 -7 -6 -6 -6 -6 -6 -5 -5 -5 -4 ------------ Run | Jun Mat Min Mat Sto Rec Fac Fac Ext Cet Arc Hub Fac Was Fac Fac Used RIF Installer . | . . . . . . . . . . . . . . . . Robots Hacked . | . . . . . . . . . . . . . . . . Non-combat . | . . . . . . . . . . . . . . . . Combat . | . . . . . . . . . . . . . . . . Robot Hacks Applied . | . . . . . . . . . . . . . . . . Relay Couplers Released 4 | . . . . . . 2 . . . . . 2 . . . Machine Destruction 4 | . . . . . . 2 . . . . . 2 . . . Fabnet Peak Effective % . | . . . . . . . . . . . . . . . . Robots Rewired 16 | . . . . . 12 1 . 3 . . . . . . . Allies Hacked . | . . . . . . . . . . . . . . . . Hacks Repelled . | . . . . . . . . . . . . . . . . Allies | -11 -10 -10 -9 -9 -9 -7 -6 -6 -6 -6 -6 -5 -5 -5 -4 -------- Run | Jun Mat Min Mat Sto Rec Fac Fac Ext Cet Arc Hub Fac Was Fac Fac Total Allies 43 | . . 2 . . 12 1 . 9 . . . . 19 . . Largest Group 19 | . . 2 2 . 9 9 . 6 . . . . 19 9 . Highest-Rated Group 702 | . . 41 41 . 128 128 . 229 . . . . 702 362 . Highest-Rated Ally 159 | . . 31 31 . 27 27 . 159 . . . . 50 46 . Total Orders . | . . . . . . . . . . . . . . . . Ally Attacks 267 | . . 1 10 . 7 6 . 47 . . . . 138 58 . Total Damage 7824 | . . . 169 . 182 138 . 1287 . . . . 5005 1043 . Kills 37 | . . . 3 . 2 2 . 16 . . . . 8 6 . Allies Corrupted 6 | . . . . . . . . . . . . . . 6 . Allies Melted . | . . . . . . . . . . . . . . . . Intel | -11 -10 -10 -9 -9 -9 -7 -6 -6 -6 -6 -6 -5 -5 -5 -4 ------- Run | Jun Mat Min Mat Sto Rec Fac Fac Ext Cet Arc Hub Fac Was Fac Fac Robot Analysis Total 2 | . . . . . . 1 . . . . 1 . . . . Derelict Logs Recovered 2 | . . 2 . . . . . . . . . . . . . Drone Launches . | . . . . . . . . . . . . . . . . Drone Recoveries . | . . . . . . . . . . . . . . . . Exploration | -11 -10 -10 -9 -9 -9 -7 -6 -6 -6 -6 -6 -5 -5 -5 -4 ------------- Run | Jun Mat Min Mat Sto Rec Fac Fac Ext Cet Arc Hub Fac Was Fac Fac Turns Passed 19854 | 56 1210 1144 1132 589 1164 8090 575 1040 523 283 1264 1127 261 1387 9 Spaces Moved 11505 | 44 781 637 595 238 619 3814 487 942 413 198 1069 946 195 523 4 Core 7 | 6 . . . . . 1 . . . . . . . . . Treads 386 | 2 . 1 . 2 . 381 . . . . . . . . . Legs 2698 | . . . . . . 2 65 942 413 198 1007 71 . . . Wheels 3367 | 36 781 636 595 236 619 464 . . . . . . . . . Hover 3157 | . . . . . . 1612 20 . . . 62 741 195 523 4 Flight 1890 | . . . . . . 1354 402 . . . . 134 . . . Fastest Speed 33 | 50 95 140 140 165 150 66 33 33 98 98 63 35 70 70 206 Average Speed 112 | 88 124 145 154 166 150 118 60 57 98 98 88 68 113 178 206 Slowest Speed 900 | 160 140 240 170 400 165 900 111 98 98 98 158 108 130 206 206 Overloaded Moves . | . . . . . . . . . . . . . . . . Propulsion Burnouts . | . . . . . . . . . . . . . . . . Robots Hopped 2 | . . . . . . 2 . . . . . . . . . Cave-ins Triggered 1 | . . . . . . . . . . . . . . 1 . Exploration Rate (%) 56 | 3 95 97 47 29 99 60 11 87 92 99 73 20 86 10 1 Regions Visited 15 Branch Regions 7 Pre-discovered Areas . | . . . . . . . . . . . . . . . . Known Exits Taken 8 | . . . 1 . . 1 1 1 1 1 1 . . 1 . Unknown Exits Taken 5 | 1 1 1 . 1 1 . . . . . . . . . . Scrap Searched 1 | . . 1 . . . . . . . . . . . . . Spaces Dug 39 | . . . . . . 15 1 1 . . 5 15 1 1 . Terrain Destroyed 369 | . . 26 1 . . 131 2 28 19 6 25 46 1 84 . Melee 33 | . . . . . . 11 . . . . 5 15 1 1 . Projectile 118 | . . . 1 . . 32 2 28 19 6 20 6 . 4 . AOE 218 | . . 26 . . . 88 . . . . . 25 . 79 . Terrain Rammed . | . . . . . . . . . . . . . . . . Walls Destroyed . | . . . . . . . . . . . . . . . . Machines Disabled . | . . . . . . . . . . . . . . . . Actions | -11 -10 -10 -9 -9 -9 -7 -6 -6 -6 -6 -6 -5 -5 -5 -4 --------- Run | Jun Mat Min Mat Sto Rec Fac Fac Ext Cet Arc Hub Fac Was Fac Fac Total 16973 | 57 946 761 722 370 791 6883 698 1277 491 253 1283 1293 219 925 4 Wait 3960 | 4 91 27 32 69 38 2643 160 214 21 13 100 215 9 324 . Move 11487 | 43 780 636 594 237 618 3809 486 941 412 197 1068 946 194 522 4 Hop 2 | . . . . . . 2 . . . . . . . . . Pick Up 99 | 4 18 15 14 8 . 21 2 3 . 3 3 5 2 1 . Fast Attach 77 | 6 3 3 4 2 2 23 . 5 5 2 9 4 . 9 . Attach 55 | . . 6 1 3 2 23 5 3 1 2 1 3 1 4 . Detach 64 | . 2 2 1 . 3 28 3 5 6 . 3 2 1 8 . Swap 40 | . 5 5 4 8 1 5 1 3 . 1 3 1 . 3 . Drop 133 | . 11 11 19 9 5 37 . 7 4 4 9 6 . 11 . Fire 887 | . 36 56 53 30 33 267 41 84 42 31 82 83 7 42 . Melee 66 | . . . . 4 . 23 . . . . 5 28 5 1 . Ram . | . . . . . . . . . . . . . . . . Kick . | . . . . . . . . . . . . . . . . Crush . | . . . . . . . . . . . . . . . . Escape Stasis . | . . . . . . . . . . . . . . . . Rewire 103 | . . . . . 89 2 . 12 . . . . . . . Trap . | . . . . . . . . . . . . . . . . Miscellaneous . | . . . . . . . . . . . . . . . . Route ------- -11/Junkyard -10/Materials (discovered 5 exits: *Mat x3 / *Min x2) -10/Mines (discovered 2 exits: *Mat x2) -9/Materials (discovered 4 exits: *Mat / Min / *Sto x2) -9/Storage -9/Recycling -7/Factory (discovered 3 exits: *Fac x2 / *Low) -6/Factory (discovered 3 exits: *Fac / [Low] / *Ext) -6/Extension (discovered 3 exits: *Fac x2 / *Cet) -6/Cetus (discovered 2 exits: *Fac / *Arc) -6/Archives (discovered 3 exits: *Fac / *Hub x2) -6/Hub_04(d) (discovered 2 exits: *Fac x2) -5/Factory -5/Waste -5/Factory -4/Factory History --------- Turn | Location | Event 6 | -11/Junkyard | Discovered new exit (range 15) 57 | -11/Junkyard | Entered Materials 267 | -10/Materials | Discovered new exit (range 6) 304 | -10/Materials | Build established: Mutant 402 | -10/Materials | Discovered new exit (range 4) 542 | -10/Materials | Discovered new exit (range 5) 756 | -10/Materials | Discovered new exit (range 16) 868 | -10/Materials | Repaired Lgt. Treads 993 | -10/Materials | Discovered new exit (range 15) 1267 | -10/Materials | Entered Mines 1287 | -10/Mines | Assembled infested the area 1366 | -10/Mines | Lost 4 parts (1p1n2w) 1409 | -10/Mines | A weapon hastily lodged in a ceiling crevice suddenly fell to the ground 1487 | -10/Mines | Core integrity fell below 50% 1772 | -10/Mines | Discovered new exit (range 10) 1947 | -10/Mines | Met a Derelict who couldn't figure out how to use a Trap Extractor 2020 | -10/Mines | Learned Materials trap positions 2036 | -10/Mines | Learned location of 1 exit from Materials 2166 | -10/Mines | Discovered new exit (range 5) 2411 | -10/Mines | Entered Materials 2411 | -9/Materials | Accompanied by 2 allies 2411 | -9/Materials | Evolved 2 slots: Utility x2 2412 | -9/Materials | Identified exit to Materials 2413 | -9/Materials | Loaded intel: 16 trap records 2416 | -9/Materials | Led the pair of lost Derelicts to an unsafe place 2567 | -9/Materials | Discovered new exit (range 13) 2740 | -9/Materials | Identified exit to Mines 2740 | -9/Materials | Identified exit to Storage 2746 | -9/Materials | Build established: Scavenger-Mutant 3543 | -9/Materials | Entered Storage 4016 | -9/Storage | Build established: Mutant 4029 | -9/Storage | Used back door to open Recycling access 4029 | -9/Storage | Discovered new exit (range 5) 4095 | -9/Storage | Repaired Hrd. Light Armor Plating 4132 | -9/Storage | Entered Recycling 4148 | -9/Recycling | Found Scrap Engine 4602 | -9/Recycling | Build established: Commander-Mutant 4758 | -9/Recycling | Discovered new exit (range 5) 5296 | -9/Recycling | Entered Factory 5296 | -7/Factory | Accompanied by 9 allies 5296 | -7/Factory | Evolved 4 slots: Propulsion x1, Utility x2, Weapon x1 5422 | -7/Factory | Repaired Remote Shield 5843 | -7/Factory | Garrison activated, responded to threat 6039 | -7/Factory | Build established: Mutant 6057 | -7/Factory | Discovered new exit (range 5) 6064 | -7/Factory | Identified exit to Lower Caves 6643 | -7/Factory | Build established: Construct 7225 | -7/Factory | Repaired Gauss Rifle 7258 | -7/Factory | Repaired Arm. Wheel 7694 | -7/Factory | Garrison activated, responded to threat 8380 | -7/Factory | Garrison activated, responded to threat 8422 | -7/Factory | Discovered new exit (range 13) 8428 | -7/Factory | Identified exit to Factory 9984 | -7/Factory | Garrison activated, responded to threat 10043 | -7/Factory | Destroyed 11 combat bots 11170 | -7/Factory | Discovered exit to Factory (range 21) 12226 | -7/Factory | Fabricated Sensor Array (x1) 12845 | -7/Factory | Core integrity fell below 50% 13173 | -7/Factory | System corruption reached 10% 13386 | -7/Factory | Entered another Factory area 13386 | -6/Factory | Evolved 2 slots: Propulsion x1, Utility x1 13631 | -6/Factory | Build established: Mutant 13749 | -6/Factory | Discovered new exit (range 15) 13751 | -6/Factory | Discovered new exit (range 10) 13756 | -6/Factory | Identified exit to Extension 13779 | -6/Factory | Identified exit to Factory 13838 | -6/Factory | Discovered new exit (range 14) 13875 | -6/Factory | Fabricated Sensor Array? 13961 | -6/Factory | Entered Extension 13978 | -6/Extension | Rescued a captive Derelict 13979 | -6/Extension | Rescued a captive Derelict 14075 | -6/Extension | Rescued A7 14158 | -6/Extension | Build established: Construct 14186 | -6/Extension | Disrupted transfer network 14193 | -6/Extension | Spotted B-75 Beast 14332 | -6/Extension | Destroyed B-75 Beast 14335 | -6/Extension | Spotted B-75 Beast 14336 | -6/Extension | Extracted ID and sensor layout for unrecognized location from A7's data core 14365 | -6/Extension | Destroyed B-75 Beast 14665 | -6/Extension | Rescued a captive Derelict 14666 | -6/Extension | Rescued a captive Derelict 14703 | -6/Extension | Rescued a captive Derelict 14718 | -6/Extension | Discovered exit to Factory (range 10) 14719 | -6/Extension | Discovered new exit (range 6) 14724 | -6/Extension | Identified exit to Cetus 14903 | -6/Extension | Discovered exit to Factory (range 3) 15001 | -6/Extension | Entered Cetus 15015 | -6/Cetus | Spotted Cetus Guard 15015 | -6/Cetus | Spotted Cetus Guard 15026 | -6/Cetus | Destroyed Cetus Guard 15026 | -6/Cetus | Spotted Cetus Guard 15031 | -6/Cetus | Spotted Cetus Guard 15035 | -6/Cetus | Destroyed Cetus Guard 15043 | -6/Cetus | Destroyed Cetus Guard 15060 | -6/Cetus | Destroyed Cetus Guard 15373 | -6/Cetus | Discovered exit to Factory (range 18) 15453 | -6/Cetus | Discovered new exit (range 17) 15469 | -6/Cetus | Identified exit to Archives 15489 | -6/Cetus | Spotted Cetus Guard 15489 | -6/Cetus | Spotted Cetus Guard 15524 | -6/Cetus | Entered Archives 15600 | -6/Archives | Core integrity fell below 50% 15645 | -6/Archives | Unable to access archive contents 15646 | -6/Archives | Discovered new exit (range 18) 15662 | -6/Archives | Unable to access archive contents 15666 | -6/Archives | Discovered exit to Factory (range 17) 15784 | -6/Archives | Discovered new exit (range 16) 15798 | -6/Archives | Identified exit to Hub_04(d) 15807 | -6/Archives | Entered Hub_04(d) 15986 | -6/Hub_04(d) | Spotted B-75 Beast 15987 | -6/Hub_04(d) | Build established: Scavenger-Mutant 16343 | -6/Hub_04(d) | Build established: Construct 16767 | -6/Hub_04(d) | Destroyed B-75 Beast 16857 | -6/Hub_04(d) | Discovered exit to Factory (range 16) 16933 | -6/Hub_04(d) | Discovered exit to Factory (range 15) 16950 | -6/Hub_04(d) | Found Prototype Launcher 16950 | -6/Hub_04(d) | Identified Rocket Array 17071 | -6/Hub_04(d) | Entered Factory 17071 | -5/Factory | Evolved 2 slots: Power x1, Utility x1 17207 | -5/Factory | Repaired Adv. Heat Sink 17615 | -5/Factory | Build established: Mutant 17958 | -5/Factory | Fabricated Adv. Recalibrator (x2) 18131 | -5/Factory | Build established: Construct 18198 | -5/Factory | Sucked down chute 18198 | -5/Factory | Entered Waste 18213 | -5/Waste | EMP discharged 18217 | -5/Waste | Spotted C-40 Crusher 18219 | -5/Waste | Spotted C-40 Crusher 18244 | -5/Waste | Met Warlord forces unprepared to attack 18259 | -5/Waste | Allies destroyed C-40 Crusher 18313 | -5/Waste | EMP discharged 18313 | -5/Waste | System corruption reached 10% 18315 | -5/Waste | Spotted C-40 Crusher 18316 | -5/Waste | Spotted C-40 Crusher 18329 | -5/Waste | Allies destroyed C-40 Crusher 18332 | -5/Waste | Spotted C-40 Crusher 18339 | -5/Waste | Allies destroyed C-40 Crusher 18347 | -5/Waste | Allies destroyed C-40 Crusher 18413 | -5/Waste | EMP discharged 18440 | -5/Waste | Discovered new exit (range 12) 18455 | -5/Waste | Identified exit to Factory 18459 | -5/Waste | Entered Factory 18459 | -5/Factory | Accompanied by 9 allies 19432 | -5/Factory | Build established: Mutant 19616 | -5/Factory | Crushed by falling debris 19769 | -5/Factory | Fabricated Lrn. Terrain Scanner (x1) 19772 | -5/Factory | Garrison activated, responded to threat 19790 | -5/Factory | Discovered new exit (range 16) 19844 | -5/Factory | Identified exit to Factory 19846 | -5/Factory | Entered another Factory area 19846 | -4/Factory | Evolved 2 slots: Utility x1, Weapon x1 19855 | -4/Factory | Self-destructed Last Messages --------------- 19832_ U-05 Engineer lays Concrete. 19834_ U-05 Engineer builds a Wall. 19834_ U-05 Engineer lays Concrete. 19835_ System corrupted: Matter fused (-6). 19835_ U-05 Engineer lays Concrete. 19835_ U-05 Engineer builds a Wall. 19836_ U-05 Engineer lays Concrete. 19836_ U-05 Engineer builds a Wall. 19836_ U-05 Engineer lays Concrete. 19836_ U-05 Engineer builds a Wall. 19837_ U-05 Engineer lays Concrete. 19837_ R-10 Processor collects Autogun. 19837_ U-05 Engineer lays Concrete. 19842_ U-05 Engineer builds a Door. 19842_ Acquired 53 matter. 19844_ EXIT=IDENTIFIED: FACTORY PARAMETERS=UTILITY+1,WEAPON+1 LOCATION=FACTORY GOAL=ESCAPE 19855_ Arm. Scrap Engine constructs Directed Plasma Construct/C. Map ----- +----------------------------------------------------+ | ?????????????????????????????????????????????????? | | ?????????????????????????????????????????????????? | | ?????????????????????????????????????????????????? | | ?????????????????????????????????????????????????? | | ?????????????????????????????????????????????????? | | ?????????????????????????????????????????????????? | | ?????????????????????????????????????????????????? | | ??????????????????????? ??????????????????????? | | ?????????????????????# ??????????????????????? | | ?????????????????????# ??????????????????????? | | ?????????????????????# #?????????????????????? | | ?????????????????????# #?????????????????????? | | ?????????????????????# #?????????????????????? | | ?????????????????????# +?????????????????????? | | ?????????????????????# #?????????????????????? | | ?????????????????????# #????????? ?????????? | | ?????????????????????# ######### ?????????? | | ?????????????????????# ?????????? | | ?????????????????????# ????????? | | ?????????????????????+ ????????? | | ?????????????????????# #???????? | | ?????????????????????# #???????? | | ?????????????????????# #??????????????? | | ?????????????????????# #??????????????? | | ?????????????????????# ########??????????????? | | ?????????????????????# @ #?????????????????????? | | ?????????????????????# #?????????????????????? | | ?????????????????????# #?????????????????????? | | ?????????????????????# #?????????????????????? | | ?????????????????????# #?????????????????????? | | ?????????????????????# #?????????????????????? | | ????????????????????? #?????????????????????? | | ???????????????????? bk?????????????????????? | | ??????????????????? #?????????????????????? | | ??????????????????? #?????????????????????? | | ?????????????????? #?????????????????????? | | ?????????????????+##########?????????????????????? | | ?????????????????????????????????????????????????? | | ?????????????????????????????????????????????????? | | ?????????????????????????????????????????????????? | | ?????????????????????????????????????????????????? | | ?????????????????????????????????????????????????? | | ?????????????????????????????????????????????????? | | ?????????????????????????????????????????????????? | | ?????????????????????????????????????????????????? | | ?????????????????????????????????????????????????? | | ?????????????????????????????????????????????????? | | ?????????????????????????????????????????????????? | | ?????????????????????????????????????????????????? | | ?????????????????????????????????????????????????? | +----------------------------------------------------+ Best States ------------- Heat Dissipation 64 Energy Generation 24 Energy Capacity 722 Matter Stores 300 Matter Capacity 300 Sight Range 18 Robot Scan Range 15 Terrain Scan Range 16 Terrain Scan Density 210 ECM Strength 2 Jamming Range 16 Armor Coverage 150 Resistance: KI 20 Resistance: TH 20 Resistance: EX 20 Resistance: EM 20 Resistance: I 20 Resistance: S 20 Resistance: P 20 Evasion (%) 68 Recoil Reduction 3 Offensive Hacking 10 Item Schematics ----------------- VTOL Module | -9/Materials | Scanalyzed Sensor Array | -9/Materials | Scanalyzed Signal Interpreter | -9/Materials | Scanalyzed Imp. EM Pulse Cannon | -9/Recycling | Hacked Adv. Weight Redist. System | -9/Recycling | Hacked Adv. Signal Interpreter | -7/Factory | Hacked Adv. Terrain Scanner | -6/Factory | Scanalyzed Robot Schematics ------------------ None Fabricated ------------ Sensor Array | x1 | -7/Factory Sensor Array | x1 | -6/Factory Adv. Recalibrator | x2 | -5/Factory | Preloaded Lrn. Terrain Scanner | x1 | -5/Factory | Preloaded Alien Tech Used ----------------- None Achievements -------------- Prison Break Treasure Hunter Universal Adapter Challenges ------------ None Game ------ Seed StealthSpliceWeb Manual? 0 Play Time 04:59:24 Cumulative 91.3 hours Start 2024.01.11 @ 13:41:10 End 2024.01.15 @ 22:02:50 Sessions 5 Manual Loads 0 Difficulty Adventurer Special Mode None Game No. 56 Rogue 19 Adventurer 36 Explorer 1 Win Type - Total 0 Types 0/0/0/0/0/0/0/0/0 Lore% 43 Gallery% 53 Achievement% 35 Wizard Run 0 Options --------- ASCII 0 Keyboard 1 Movement Numpad Keybinds 0 Fullscreen 2 Font 18/SmallcapsGlow Map View 76x50 Tactical HUD 1 Map Filters NONE Filters NONE Steam 1 RUN: fa8bdc9d-7eca-46b4-890a-f3f38202c27f